fUST/lending_fUST_20250219
["ID","MTS","AMOUNT","RATE_DAILY","PERIOD"]
[353573963,1739923849490,-500.0,0.00015506,2]
[353573964,1739923849501,-208.76080018,0.00015506,2]
[353573965,1739923849512,-537.62,0.00015506,2]
[353573966,1739923849524,-1173.67,0.00015506,2]
[353573967,1739923849536,-502.2,0.00015506,2]
[353573968,1739923849547,-12880.24,0.00015506,2]
[353573969,1739923849558,-913.8,0.00015506,2]
[353573970,1739923849568,-500.0,0.00015534,2]
[353573971,1739923849579,-174.49290817,0.00015589,2]
[353573972,1739923849590,-2395.59004794,0.00015589,2]
[353573973,1739923849601,-579.76989862,0.00015589,2]
[353573974,1739923849612,-241.22116204,0.00015589,2]
[353573975,1739923849622,-2046.06451707,0.00015589,2]
[353573976,1739923849632,-432.05695954,0.00015589,2]
[353573977,1739923849644,-537.66218942,0.00015589,2]
[353573978,1739923849655,-1173.86659082,0.00015589,2]
[353573979,1739923849665,-502.3170493,0.00015589,2]
[353573980,1739923849678,-12880.44720801,0.00015589,2]
[353573981,1739923849689,-913.83926382,0.00015589,2]
[353573982,1739923849699,-151.0,0.000156,2]
[353573983,1739923849710,-151.0,0.000157,2]
[353573984,1739923849719,-167.90509642,0.00015749,2]
[353573985,1739923849730,-400.0,0.00015775,2]
[353573986,1739923849744,-221.0791,0.00015882,2]
[353573987,1739923849756,-151.0,0.000159,2]
[353573988,1739923849768,-151.0,0.00016,2]
[353573989,1739923849778,-44445.0,0.00016,3]
[353573990,1739923849788,-198.53301497,0.000161,2]
[353573991,1739923849799,-198.53301497,0.000161,2]
[353573992,1739923849809,-198.53301497,0.000161,2]
[353573993,1739923849820,-198.53301497,0.000161,2]
[353573994,1739923849834,-198.53301497,0.000161,2]
[353573995,1739923849844,-198.53301497,0.000161,2]
[353573996,1739923849854,-198.53301497,0.000161,2]
[353573997,1739923849864,-198.53301497,0.000161,2]
[353573998,1739923849873,-198.53301497,0.000161,2]
[353573999,1739923849883,-198.53301497,0.000161,2]
[353574000,1739923849892,-198.53301497,0.000161,2]
[353574001,1739923849902,-198.53301497,0.000161,2]
[353574002,1739923849911,-198.53301497,0.000161,2]
[353574003,1739923849920,-198.53301497,0.000161,2]
[353574004,1739923849931,-198.53301497,0.000161,2]
[353574005,1739923849940,-198.53301497,0.000161,2]
[353574006,1739923849950,-198.53301497,0.000161,2]
[353574007,1739923849959,-198.53301497,0.000161,2]
[353574008,1739923849968,-198.53301497,0.000161,2]
[353574009,1739923849978,-198.53,0.000161,2]
[353574010,1739923849988,-347.33369249,0.000161,2]
[353574011,1739923849998,-347.33369249,0.000161,2]
[353574012,1739923850007,-347.33369249,0.000161,2]
[353574013,1739923850017,-347.33369249,0.000161,2]
[353574014,1739923850026,-347.33369249,0.000161,2]
[353574015,1739923850036,-347.33369249,0.000161,2]
[353574016,1739923850045,-347.33369249,0.000161,2]
[353574017,1739923850055,-347.33369249,0.000161,2]
[353574018,1739923850065,-347.33369249,0.000161,2]
[353574019,1739923850075,-347.33369249,0.000161,2]
[353574020,1739923850084,-347.33369249,0.000161,2]
[353574021,1739923850094,-347.33369249,0.000161,2]
[353574022,1739923850103,-347.33369249,0.000161,2]
[353574023,1739923850112,-347.33369249,0.000161,2]
[353574024,1739923850122,-347.33369249,0.000161,2]
[353574025,1739923850131,-347.33369249,0.000161,2]
[353574026,1739923850148,-347.33369249,0.000161,2]
[353574027,1739923850158,-347.33369249,0.000161,2]
[353574028,1739923850169,-347.33369249,0.000161,2]
[353574029,1739923850182,-347.33,0.000161,2]
[353574030,1739923850192,-499.0,0.00016164,2]
[353574031,1739923850201,-3771.874468,0.000162,2]
[353574032,1739923850211,-3771.874468,0.000162,2]
[353574033,1739923850222,-531.88398,0.000162,2]
[353574034,1739923850231,-531.88398,0.000162,2]
[353574035,1739923850240,-475.618381,0.000162,2]
[353574036,1739923850251,-475.618381,0.000162,2]
[353574037,1739923850261,-151.0,0.000162,2]
[353574038,1739923850270,-739.358215,0.000162,2]
[353574039,1739923850280,-739.358215,0.000162,2]
[353574040,1739923850290,-151.0,0.000162,2]
[353574041,1739923850299,-151.0,0.000162,2]
[353574042,1739923850309,-189.0,0.000162,2]
[353574043,1739923850318,-187.505,0.00016241,2]
[353574044,1739923850327,-159.689,0.00016241,2]
[353574045,1739923850336,-211.818,0.00016241,2]
[353574046,1739923850345,-151.0,0.000163,2]
[353574047,1739923850355,-587.0,0.00016333,2]
[353574048,1739923850364,-2090.38793026,0.00016361,2]
[353574049,1739923850374,-1001.47152672,0.00016422,2]
[353574050,1739923850383,-1000.0,0.00016422,2]
[353574051,1739923850392,-302.0,0.0001643,2]
[353574052,1739923850402,-1000.0,0.00016438,2]
[353574053,1739923850411,-1000.0,0.00016438,2]
[353574054,1739923850421,-388.3782138,0.00016438,2]
[353574055,1739923850431,-26789.49,0.000165,2]
[353574056,1739923850441,-151.0,0.000165,2]
[353574057,1739923850451,-3157.44,0.000165,2]
[353574058,1739923850461,-466.96442458,0.00016569,2]
[353574059,1739923850471,-253.402,0.00016671,2]
[353574060,1739923850480,-150.0,0.00016671,2]
[353574061,1739923850490,-538.0,0.00016671,2]
[353574062,1739923850499,-1971.0,0.00016671,2]
[353574063,1739923850509,-2289.0,0.00016671,2]
[353574064,1739923850518,-151.0,0.000167,2]
[353574065,1739923850527,-167.90509642,0.00016825,2]
[353574066,1739923850538,-500.0,0.00016904,2]
[353574067,1739923850548,-2200.0,0.00016908,2]
[353574068,1739923850559,-500.0,0.00017,7]
[353574069,1739923850567,-500.0,0.00017,7]
[353574070,1739923850577,-500.0,0.00017,7]
[353574071,1739923850586,-500.0,0.00017,7]
[353574072,1739923850595,-500.0,0.00017,7]
[353574073,1739923850604,-500.0,0.00017,7]
[353574074,1739923850613,-500.0,0.00017,7]
[353574075,1739923850623,-500.0,0.00017,7]
[353574076,1739923850632,-500.0,0.00017,7]
[353574077,1739923850641,-500.0,0.00017,7]
[353574078,1739923850651,-568.74,0.00017,7]
[353574079,1739923850660,-300.0,0.00017,6]
[353574080,1739923850669,-451.669586,0.00017123,2]
[353574081,1739923850679,-324.729398,0.000175,2]
[353574082,1739923850689,-324.729398,0.000175,2]
[353574083,1739923850698,-279.457417,0.000175,2]
[353574084,1739923850708,-279.457417,0.000175,2]
[353574085,1739923850724,-173.730528,0.000175,2]
[353574086,1739923850733,-173.730528,0.000175,2]
[353574087,1739923850743,-5684.761557,0.000175,2]
[353574088,1739923850753,-5684.761557,0.000175,2]
[353574089,1739923850763,-1020.27356502,0.00017531,2]
[353574090,1739923850772,-499.0,0.00017534,4]
[353574091,1739923850782,-2000.0,0.00017616,30]
[353574092,1739923850791,-2000.0,0.00017616,30]
[353574093,1739923850801,-843.599999,0.00017616,30]
[353574094,1739923850904,-2000.0,0.00017616,30]
[353574095,1739923850914,-2000.0,0.00017616,30]
[353574096,1739923850925,-843.599999,0.00017616,30]
[353574097,1739923850936,-4622.0634436,0.00017616,35]
[353574098,1739923850946,-1354.3657539,0.0001764,2]
[353574099,1739923850956,-6428.27925386,0.00017655,2]
[353574100,1739923850967,-5000.0,0.00017655,2]
[353574101,1739923850976,-5000.0,0.00017655,2]
[353574102,1739923850986,-5000.0,0.00017655,2]
[353574103,1739923850995,-5000.0,0.00017655,2]
[353574104,1739923851006,-4529.75,0.000178,5]
[353574105,1739923851016,-22618.90496927,0.0001782,2]
[353574106,1739923851025,-3000.0,0.000179,2]
[353574107,1739923851035,-3000.0,0.000179,2]
[353574108,1739923851046,-167.90509642,0.000179,2]
[353574109,1739923851055,-2090.38793026,0.000179,2]
[353574110,1739923851064,-153.6,0.000179,31]
[353574111,1739923851074,-153.6,0.000179,31]
[353574112,1739923851083,-153.6,0.000179,31]
[353574113,1739923851093,-153.6,0.000179,31]
[353574114,1739923851102,-153.6,0.000179,31]
[353574115,1739923851112,-153.6,0.000179,31]
[353574116,1739923851121,-153.6,0.000179,31]
[353574117,1739923851131,-823.0,0.00017901,2]
[353574118,1739923851141,-500.0,0.00017973,2]
[353574119,1739923851150,-500.0,0.00017973,2]
[353574120,1739923851160,-344.0,0.0001799,2]
[353574121,1739923851171,-201.21457128,0.00017999,2]
[353574122,1739923851185,-160.0,0.00017999,2]
[353574123,1739923851194,-160.0,0.00017999,2]
[353574124,1739923851204,-83976.92969912,0.00018,5]
[353574125,1739923851214,-10358.54799283,0.00018,5]
[353574126,1739923851224,-2469758.42391872,0.00018,15]
[353574127,1739923851322,-4259.98286914,0.00018,15]
[353574128,1739923851763,-500.0,0.00013698,2]
[353574129,1739923851772,-500.0,0.00013698,2]
[353574130,1739923851782,-500.0,0.0001378,2]
[353574131,1739923851791,-500.0,0.00013863,2]
[353574132,1739923851802,-531218.01558841,0.00018,15]
[353574133,1739923851814,-80429.1841978,0.00018,15]
[353574134,1739923851825,-2675.2984274,0.00018,15]
[353574135,1739923851861,-538.28783742,0.00018,15]
[353574136,1739923851882,-500.0,0.0001378,2]
[353574137,1739923851892,-2556.99395516,0.00018,15]
[353574138,1739923851904,-12440.00000022,0.00018,15]
[353574139,1739923852074,-47.97610751,0.00013863,2]
[353574140,1739923852089,-452.02389249,0.00013863,2]
[353574141,1739923852099,-6927.1856375,0.00018,15]
[353574145,1739923923534,5211.88587176,0.00012396,2]
[353574149,1739924724730,373.018306,9.041e-05,2]
[353574168,1739924826123,-250.0,0.00010849,2]
[353574169,1739924826146,-675.97,0.00010959,2]
[353574170,1739924826168,-97.25767839,0.00012396,2]
[353574171,1739924826190,-753.24452733,0.00012673,2]
[353574172,1739924828091,-1474.26215119,0.00012673,2]
[353574173,1739924843099,-471.69946438,0.00012673,2]
[353574174,1739924843121,-108.69665531,0.00013598,2]
[353574175,1739924852124,-78.5547583,0.00013598,2]
[353574176,1739924852147,-232.32335309,0.00013697,2]
[353574177,1739924852168,-300.0,0.00013697,2]
[353574178,1739924852188,-64.71963198,0.00013698,2]
[353574197,1739924922389,150.9999994,0.00017605,120]
[353574236,1739925032235,-175.6436233,0.00013598,2]
[353574237,1739925032245,-300.0,0.00013697,2]
[353574238,1739925032255,-288.04560858,0.00013698,2]
[353574239,1739925032265,-500.0,0.00013698,2]
[353574240,1739925032275,-500.0,0.00013698,2]
[353574241,1739925032285,-500.0,0.00013698,2]
[353574242,1739925032295,-500.0,0.00013698,2]
[353574243,1739925032305,-503.0,0.00013698,2]
[353574244,1739925032315,-548.91148274,0.00013698,2]
[353574245,1739925032324,-500.0,0.00013698,2]
[353574246,1739925032334,-506.18087667,0.00013698,2]
[353574247,1739925032344,-500.0,0.00013698,2]
[353574248,1739925032353,-500.0,0.00013698,2]
[353574249,1739925032363,-500.0,0.00013698,2]
[353574250,1739925032373,-500.0,0.00013698,2]
[353574251,1739925032383,-297.13543309,0.00013698,2]
[353574252,1739925032393,-500.0,0.00013698,2]
[353574253,1739925032403,-500.0,0.00013698,2]
[353574254,1739925032413,-500.0,0.00013698,2]
[353574255,1739925032423,-500.0,0.00013698,2]
[353574257,1739925032433,-500.0,0.00013698,2]
[353574259,1739925032443,-500.0,0.00013698,2]
[353574260,1739925032453,-500.0,0.00013698,2]
[353574261,1739925032463,-500.0,0.00013698,2]
[353574262,1739925032473,-500.0,0.00013698,2]
[353574263,1739925032483,-500.0,0.00013698,2]
[353574264,1739925032493,-503.26040828,0.00013698,2]
[353574265,1739925032502,-500.0,0.00013698,2]
[353574266,1739925032512,-500.0,0.00013698,2]
[353574267,1739925032521,-500.0,0.00013698,2]
[353574268,1739925032530,-500.36388675,0.00013698,2]
[353574269,1739925032540,-500.0,0.00013698,2]
[353574270,1739925032549,-322.25837774,0.00013698,2]
[353574271,1739925032558,-500.0,0.00013698,2]
[353574272,1739925032567,-580.3228832,0.00013698,2]
[353574273,1739925032580,-500.58466703,0.00013698,2]
[353574274,1739925032589,-503.49007448,0.00013698,2]
[353574275,1739925032598,-194.40886114,0.00013698,2]
[353574276,1739925032611,-328.84875147,0.00013698,2]
[353574277,1739925032622,-520.29873093,0.00013698,2]
[353574285,1739925038219,-110.79126907,0.00013698,2]
[353574287,1739925038229,-500.0,0.00013698,2]
[353574289,1739925038239,-500.0,0.00013698,2]
[353574290,1739925038248,-354.93373093,0.00013698,2]
[353574292,1739925038260,-145.06626907,0.00013698,2]
[353574294,1739925038270,-166.97301514,0.00013698,2]
[353574297,1739925038282,-109.84391506,0.00013698,2]
[353574299,1739925038291,-500.0,0.00013698,2]
[353574301,1739925038301,-500.0,0.00013698,2]
[353574303,1739925038310,-503.20686269,0.00013698,2]
[353574305,1739925038320,-500.0,0.00013698,2]
[353574306,1739925038329,-500.0,0.00013698,2]
[353574307,1739925038339,-500.0,0.00013698,2]
[353574308,1739925038348,-500.0,0.00013698,2]
[353574309,1739925038358,-500.0,0.00013698,2]
[353574310,1739925038367,-500.0,0.00013698,2]
[353574311,1739925038376,-500.0,0.00013698,2]
[353574312,1739925038515,-500.0,0.00013698,2]
[353574313,1739925038524,-500.0,0.00013698,2]
[353574314,1739925038533,-500.0,0.00013698,2]
[353574315,1739925038543,-500.0,0.00013698,2]
[353574316,1739925038553,-500.0,0.00013698,2]
[353574317,1739925038562,-502.97426491,0.00013698,2]
[353574318,1739925038572,-500.0,0.00013698,2]
[353574319,1739925038581,-500.0,0.00013698,2]
[353574320,1739925038593,-500.0,0.00013698,2]
[353574321,1739925038602,-500.0,0.00013698,2]
[353574322,1739925038612,-500.0,0.00013698,2]
[353574323,1739925038622,-500.0,0.00013698,2]
[353574324,1739925038631,-500.0,0.00013698,2]
[353574325,1739925038640,-500.0,0.00013698,2]
[353574326,1739925038649,-462.83709241,0.00013698,2]
[353574327,1739925038659,-500.0,0.00013698,2]
[353574328,1739925038668,-508.59585944,0.00013698,2]
[353574329,1739925038677,-324.82527579,0.00013698,2]
[353574330,1739925038687,-500.0,0.00013698,2]
[353574331,1739925038697,-500.0,0.00013698,2]
[353574332,1739925038706,-500.0,0.00013698,2]
[353574333,1739925038716,-503.34952851,0.00013698,2]
[353574334,1739925038726,-505.63976261,0.00013698,2]
[353574335,1739925038735,-500.0,0.00013698,2]
[353574336,1739925038745,-500.0,0.00013698,2]
[353574337,1739925038754,-500.0,0.00013698,2]
[353574338,1739925038766,-275.0337776,0.00013698,2]
[353574339,1739925038775,-500.0,0.00013698,2]
[353574340,1739925038785,-275.38,0.00013698,2]
[353574341,1739925038794,-500.0,0.00013698,2]
[353574342,1739925038804,-500.0,0.00013698,2]
[353574343,1739925038813,-500.0,0.00013698,2]
[353574344,1739925038822,-500.0,0.00013698,2]
[353574345,1739925038831,-500.0,0.00013698,2]
[353574346,1739925038841,-500.0,0.00013698,2]
[353574347,1739925038851,-500.0,0.00013698,2]
[353574348,1739925038860,-500.0,0.00013698,2]
[353574349,1739925038870,-500.0,0.00013698,2]
[353574350,1739925038880,-626.87917455,0.00013698,2]
[353574351,1739925038890,-500.0,0.00013698,2]
[353574352,1739925038900,-500.0,0.00013698,2]
[353574353,1739925038909,-500.0,0.00013698,2]
[353574354,1739925038919,-902.82,0.00013698,2]
[353574355,1739925038929,-155.39569692,0.00013698,2]
[353574356,1739925038940,-500.0,0.00013698,2]
[353574357,1739925038949,-500.0,0.00013698,2]
[353574358,1739925038959,-500.0,0.00013698,2]
[353574359,1739925038968,-500.0,0.00013698,2]
[353574360,1739925038977,-1000.0,0.00013698,2]
[353574361,1739925038986,-738.82,0.00013698,2]
[353574362,1739925038996,-500.0,0.00013698,2]
[353574363,1739925039006,-500.0,0.00013698,2]
[353574364,1739925039015,-500.0,0.00013698,2]
[353574365,1739925039025,-500.0,0.00013698,2]
[353574366,1739925039034,-500.0,0.00013698,2]
[353574367,1739925039043,-437.38149238,0.00013698,2]
[353574368,1739925039053,-436.36084623,0.00013698,2]
[353574369,1739925039063,-500.0,0.00013698,2]
[353574370,1739925039072,-246.96834135,0.00013698,2]
[353574371,1739925039081,-445.232155,0.00013699,2]
[353574372,1739925039091,-1803.310898,0.00013699,2]
[353574373,1739925039100,-385.28345388,0.00013699,2]
[353574374,1739925039109,-500.0,0.0001378,2]
[353574375,1739925039118,-500.0,0.0001378,2]
[353574376,1739925039127,-500.0,0.0001378,2]
[353574377,1739925039137,-500.0,0.0001378,2]
[353574378,1739925039146,-500.0,0.0001378,2]
[353574379,1739925039157,-411.34911798,0.0001378,2]
[353574380,1739925039166,-500.0,0.0001378,2]
[353574381,1739925039176,-545.38,0.0001378,2]
[353574382,1739925039185,-500.0,0.0001378,2]
[353574383,1739925039196,-500.0,0.0001378,2]
[353574384,1739925039206,-500.0,0.0001378,2]
[353574385,1739925039216,-500.0,0.0001378,2]
[353574386,1739925039225,-500.0,0.0001378,2]
[353574387,1739925039235,-562.22,0.0001378,2]
[353574388,1739925039244,-500.0,0.0001378,2]
[353574389,1739925039253,-500.0,0.0001378,2]
[353574390,1739925039262,-500.0,0.0001378,2]
[353574391,1739925039271,-902.82,0.0001378,2]
[353574392,1739925039281,-393.51116204,0.0001378,2]
[353574393,1739925039290,-500.0,0.0001378,2]
[353574394,1739925039300,-500.0,0.0001378,2]
[353574395,1739925039309,-500.0,0.0001378,2]
[353574396,1739925039319,-1000.0,0.0001378,2]
[353574397,1739925039328,-738.82,0.0001378,2]
[353574398,1739925039337,-500.0,0.0001378,2]
[353574399,1739925039346,-500.0,0.0001378,2]
[353574400,1739925039356,-500.0,0.0001378,2]
[353574401,1739925039365,-637.94,0.0001378,2]
[353574402,1739925039374,-500.0,0.0001378,2]
[353574403,1739925039383,-500.0,0.0001378,2]
[353574404,1739925039393,-983.20901839,0.000138,2]
[353574405,1739925039403,-465.53346594,0.00013862,2]
[353574406,1739925039412,-500.0,0.00013863,2]
[353574407,1739925039422,-500.0,0.00013863,2]
[353574408,1739925039431,-500.0,0.00013863,2]
[353574409,1739925039443,-500.0,0.00013863,2]
[353574410,1739925039452,-500.0,0.00013863,2]
[353574411,1739925039462,-500.0,0.00013863,2]
[353574412,1739925039471,-500.0,0.00013863,2]
[353574413,1739925039480,-500.0,0.00013863,2]
[353574414,1739925039490,-412.49445471,0.00013863,2]
[353574415,1739925039499,-500.0,0.00013863,2]
[353574416,1739925039509,-500.0,0.00013863,2]
[353574417,1739925039519,-902.82,0.00013863,2]
[353574418,1739925039529,-500.0,0.00013863,2]
[353574419,1739925039540,-1000.0,0.00013863,2]
[353574420,1739925039550,-738.82,0.00013863,2]
[353574421,1739925039560,-500.0,0.00013863,2]
[353574422,1739925039569,-500.0,0.00013863,2]
[353574423,1739925039581,-500.0,0.00013863,2]
[353574424,1739925039594,-500.0,0.00013863,2]
[353574425,1739925039603,-155.0324637,0.00013892,2]
[353574426,1739925039613,-1000.0,0.000139,2]
[353574427,1739925039623,-152.0,0.00013922,2]
[353574428,1739925039634,-4580.55825503,0.00013942,2]
[353574429,1739925039643,-500.0,0.00013945,2]
[353574430,1739925039653,-500.0,0.00013945,2]
[353574431,1739925039663,-387.94,0.00013945,2]
[353574432,1739925039673,-500.0,0.00013945,2]
[353574433,1739925039683,-500.0,0.00013945,2]
[353574434,1739925039694,-500.0,0.00013945,2]
[353574435,1739925039704,-478.92149365,0.00013945,2]
[353574436,1739925039713,-599.45792833,0.00013945,2]
[353574437,1739925039722,-902.82,0.00013945,2]
[353574438,1739925039731,-508.9170493,0.00013945,2]
[353574439,1739925039740,-329.05403759,0.00013945,2]
[353574440,1739925039750,-738.82,0.00013945,2]
[353574441,1739925039759,-500.0,0.00013945,2]
[353574442,1739925039768,-500.0,0.00013945,2]
[353574443,1739925039777,-500.0,0.00013945,2]
[353574444,1739925039786,-500.0,0.00013945,2]
[353574445,1739925039796,-500.0,0.00013973,2]
[353574446,1739925039805,-500.0,0.00013973,2]
[353574447,1739925039815,-500.0,0.00013973,2]
[353574448,1739925039824,-500.0,0.00013973,2]
[353574449,1739925039834,-151.0,0.00013981,2]
[353574450,1739925039843,-65854.66114128,0.0001399,2]
[353574451,1739925039852,-406.42640272,0.0001399,2]
[353574452,1739925039861,-4096.22633394,0.0001399,2]
[353574453,1739925039870,-500.0,0.00013991,2]
[353574454,1739925039880,-65854.66114128,0.00013991,2]
[353574455,1739925039890,-1194.79335234,0.00013993,2]
[353574456,1739925039899,-1194.79335234,0.00013996,2]
[353574457,1739925039909,-271.49658021,0.00013996,2]
[353574458,1739925039918,-271.49658021,0.00013997,2]
[353574460,1739925039927,-65854.66114128,0.00013999,2]
[353574461,1739925039938,-271.49658021,0.00013999,2]
[353574462,1739925039947,-1194.79335234,0.00014,2]
[353574463,1739925039956,-151.0,0.00014,2]
[353574464,1739925039965,-151.0,0.00014,2]
[353574465,1739925039974,-151.0,0.00014,2]
[353574466,1739925039984,-1316.66673367,0.00014,2]
[353574467,1739925039993,-1000.0,0.00014,2]
[353574468,1739925040002,-500.0,0.00014027,2]
[353574469,1739925040012,-500.0,0.00014027,2]
[353574470,1739925040022,-574.01,0.00014027,2]
[353574471,1739925040033,-500.0,0.00014027,2]
[353574472,1739925040042,-902.82,0.00014027,2]
[353574473,1739925040052,-738.82,0.00014027,2]
[353574474,1739925040061,-208.76080018,0.00014027,2]
[353574475,1739925040071,-500.0,0.00014027,2]
[353574476,1739925040080,-500.0,0.00014027,2]
[353574477,1739925040090,-500.0,0.00014027,2]
[353574478,1739925040099,-151.0,0.000141,2]
[353574479,1739925040109,-1000.0,0.000141,2]
[353574480,1739925040119,-500.0,0.00014109,2]
[353574481,1739925040129,-500.0,0.00014109,2]
[353574482,1739925040139,-500.0,0.00014109,2]
[353574483,1739925040148,-902.82,0.00014109,2]
[353574484,1739925040157,-738.82,0.00014109,2]
[353574485,1739925040167,-500.0,0.00014109,2]
[353574486,1739925040177,-500.0,0.00014109,2]
[353574487,1739925040186,-500.0,0.00014109,2]
[353574488,1739925040196,-500.0,0.00014164,2]
[353574489,1739925040206,-395.463,0.00014186,2]
[353574490,1739925040216,-320.07804288,0.00014191,2]
[353574491,1739925040226,-500.0,0.00014191,2]
[353574492,1739925040236,-500.0,0.00014191,2]
[353574493,1739925040245,-902.82,0.00014191,2]
[353574494,1739925040254,-738.82,0.00014191,2]
[353574495,1739925040264,-225.76218942,0.00014191,2]
[353574496,1739925040273,-500.0,0.00014191,2]
[353574497,1739925040283,-500.0,0.00014191,2]
[353574498,1739925040292,-500.0,0.00014273,2]
[353574499,1739925040302,-500.0,0.00014273,2]
[353574500,1739925040312,-902.82,0.00014273,2]
[353574501,1739925040321,-738.82,0.00014273,2]
[353574502,1739925040330,-500.0,0.00014273,2]
[353574503,1739925040340,-500.0,0.00014273,2]
[353574504,1739925040349,-7438.69753278,0.00014287,2]
[353574505,1739925040358,-151.0,0.000143,2]
[353574506,1739925040368,-192.0,0.00014317,2]
[353574507,1739925040377,-500.0,0.00014356,2]
[353574508,1739925040387,-500.0,0.00014356,2]
[353574509,1739925040396,-902.82,0.00014356,2]
[353574510,1739925040405,-738.82,0.00014356,2]
[353574511,1739925040415,-500.0,0.00014356,2]
[353574512,1739925040424,-500.0,0.00014356,2]
[353574513,1739925040433,-151.0,0.000144,2]
[353574514,1739925040443,-151.0,0.000144,2]
[353574515,1739925040453,-500.0,0.00014438,2]
[353574516,1739925040462,-500.0,0.00014438,2]
[353574517,1739925040471,-902.82,0.00014438,2]
[353574519,1739925040480,-738.82,0.00014438,2]
[353574520,1739925040490,-500.0,0.00014438,2]
[353574521,1739925040499,-500.0,0.00014438,2]
[353574522,1739925040509,-151.0,0.000145,2]
[353574523,1739925040518,-500.0,0.0001452,2]
[353574524,1739925040526,-500.0,0.0001452,2]
[353574525,1739925040536,-902.82,0.0001452,2]
[353574526,1739925040545,-738.82,0.0001452,2]
[353574527,1739925040555,-500.0,0.0001452,2]
[353574528,1739925040564,-500.0,0.0001452,2]
[353574529,1739925040574,-500.0,0.00014521,2]
[353574530,1739925040583,-1000.0,0.00014521,2]
[353574531,1739925040595,-166.1,0.00014529,2]
[353574532,1739925040604,-151.0,0.000146,2]
[353574533,1739925040613,-483.8,0.00014602,2]
[353574534,1739925040622,-500.0,0.00014602,2]
[353574535,1739925040631,-902.82,0.00014602,2]
[353574536,1739925040640,-738.82,0.00014602,2]
[353574537,1739925040649,-500.0,0.00014602,2]
[353574538,1739925040658,-500.0,0.00014602,2]
[353574539,1739925040667,-175.64362329,0.00014674,2]
[353574540,1739925040676,-500.0,0.00014684,2]
[353574541,1739925040686,-902.82,0.00014684,2]
[353574542,1739925040697,-738.82,0.00014684,2]
[353574543,1739925040706,-500.0,0.00014684,2]
[353574544,1739925040715,-500.0,0.00014684,2]
[353574545,1739925040724,-500.0,0.00014767,2]
[353574546,1739925040734,-902.82,0.00014767,2]
[353574547,1739925040743,-738.82,0.00014767,2]
[353574548,1739925040752,-542.21659082,0.00014767,2]
[353574549,1739925040761,-500.0,0.00014767,2]
[353574550,1739925040770,-151.0,0.000148,2]
[353574551,1739925040779,-151.0,0.000148,2]
[353574552,1739925040788,-151.0,0.000148,2]
[353574553,1739925040797,-500.0,0.00014849,2]
[353574554,1739925040807,-902.82,0.00014849,2]
[353574555,1739925040816,-738.82,0.00014849,2]
[353574556,1739925040825,-500.0,0.00014849,2]
[353574557,1739925040835,-151.0,0.000149,2]
[353574558,1739925040844,-110447.719791,0.000149,2]
[353574559,1739925040853,-10077.14434103,0.000149,2]
[353574560,1739925040862,-500.0,0.00014931,2]
[353574561,1739925040871,-902.82,0.00014931,2]
[353574562,1739925040880,-738.82,0.00014931,2]
[353574563,1739925040890,-500.0,0.00014931,2]